Cogmind - Beta 13 X2 @@@ ROGUE MODE // 2024.01.05 @ 06:13:03 Player: arkn Result: Destroyed by 3I-FVL(R) with Subdweller Shrapnel Launcher Performance ------------- Evolutions (0) 0 Regions Visited (3) 600 Robots Destroyed (26) 130 Value Destroyed (536) 536 Prototype IDs (0) 0 Alien Tech Used (0) 0 Bonus (0) 0 TOTAL SCORE: 1266 Bonus ------- None Cogmind --------- Core Integrity 0/250 Matter 224/300 Energy 100/100 System Corruption 9% Temperature Cool (0) Movement Treading (160) Location -10/Subcaves Parts ------- > --- POWER (1) -------- (None) > --- PROPULSION (2) --- Light Treads Spiked Treads > --- UTILITY (2) ------ Large Storage Unit > --- WEAPON (2) ------- Subdweller Machine Gun Subdweller Machine Gun > --- INVENTORY (15) --- Aluminum Leg Aluminum Leg Subdweller Monowheel Subdweller Monowheel Disposable Heat Sink Medium Storage Unit High-capacity Matter Pod (200) Structural Scanner Subdweller Optics Seismic Detector Tractor Beam Mini Grenade Launcher Mining Laser Mining Laser Scrap Shield Fragment (46) Peak State ------------ > --- POWER ------------ Subdweller Power Source > --- PROPULSION ------- Light Treads Spiked Treads > --- UTILITY ---------- Large Storage Unit Light Armor Plating > --- WEAPON ----------- Subdweller Machine Gun Subdweller Machine Gun > --- INVENTORY -------- Light Treads Aluminum Leg Aluminum Leg Subdweller Monowheel Disposable Heat Sink Medium Storage Unit High-capacity Matter Pod Structural Scanner Subdweller Optics Seismic Detector Tractor Beam Mini Grenade Launcher Mining Laser Mining Laser Scrap Shield Fragment [Rating: 13] Favorites ----------- Power Ion Engine Engine Ion Engine Power Core Light Nuclear Core Propulsion Aluminum Leg Treads Light Treads Leg Aluminum Leg Utility Large Storage Unit Device Improved Heat Sink Storage Large Storage Unit Protection Light Armor Plating Weapon Beam Cannon Energy Gun Particle Gun Energy Cannon Beam Cannon Ballistic Gun Subdweller Machine Gun Launcher Mini Grenade Launcher Special Weapon Mining Laser Build | -11 -10 -10 -10 ------- Run | Yrd Mat Min Sub Slots Evolved . | . . . . Power . | . . . . Propulsion . | . . . . Utility . | . . . . Weapon . | . . . . Parts Attached 29 | 1 9 11 8 Power 6 | . . 4 2 Engine 5 | . . 3 2 Core 1 | . . 1 . Reactor . | . . . . Propulsion 4 | . . 2 2 Treads 4 | . . 2 2 Leg . | . . . . Wheel . | . . . . Hover . | . . . . Flight . | . . . . Utility 10 | 1 4 3 2 Device 4 | 1 2 . 1 Storage 3 | . 2 1 . Processor . | . . . . Hackware . | . . . . Protection 3 | . . 2 1 Artifact . | . . . . Weapon 9 | . 5 2 2 Energy Gun 1 | . . 1 . Energy Cannon 3 | . 3 . . Ballistic Gun 2 | . . . 2 Ballistic Cannon . | . . . . Launcher 1 | . . 1 . Special Weapon 2 | . 2 . . Impact Weapon . | . . . . Slashing Weapon . | . . . . Piercing Weapon . | . . . . Special Melee Weapon . | . . . . Unidentified Prototypes . | . . . . Parts Lost 12 | . . 8 4 Power 5 | . . 4 1 Propulsion 2 | . . 1 1 Utility 2 | . . 1 1 Weapon 3 | . . 2 1 Highest Loss Streak 4 | . . 4 2 To Critical Strikes . | . . . . Average Slot Usage (%) 97 | . 100 95 96 Engine 12 | . 14 10 10 Treads 12 | . . 19 27 Leg 15 | . 28 8 . Device 8 | . 14 5 1 Storage 14 | . 14 14 14 Protection 5 | . . 8 12 Energy Gun 4 | . 1 12 2 Energy Cannon 10 | . 19 5 . Ballistic Gun 8 | . 3 . 24 Launcher 2 | . . 8 . Special Weapon 1 | . 2 . . Naked Turns . | . . . . Heaviest Build 36 | 13 32 32 36 Greatest Support 40 | 20 20 40 40 Greatest Overweight (x) 1 | . 1 1 . Average Overweight (x) . | . . . . Largest Inventory Capacity 15 | 8 15 15 15 Average Capacity 12 | 8 11 15 15 Most Carried 15 | 7 15 15 15 Average Carried 11 | 6 10 12 14 Final Capacity 15 | 8 15 15 15 Final Carried 15 | 7 15 13 15 Class Distribution -------------------- 67% | Mutant 21% | Subdweller-Mutant 10% | Scavenger-Mutant Dominant Class ---------------- Mutant | -10/Materials Mutant | -10/Mines Subdweller-Mutant | -10/Subcaves Resources | -11 -10 -10 -10 ----------- Run | Yrd Mat Min Sub Matter Collected 700 | 217 165 178 140 Remotely 10 | 10 . . . Salvage Created 721 | 66 423 209 23 Parts 57 | 7 33 10 7 Haulers Intercepted 1 | . 1 . . Recyclers Shooed 1 | 1 . . . Parts Field Recycled . | . . . . Retrieved Matter . | . . . . Parts Self-Destructed 2 | . . . 2 Prevented . | . . . . Kills | -11 -10 -10 -10 ------- Run | Yrd Mat Min Sub Combat Hostiles Destroyed 27 | . 12 13 2 Guns 8 | . 1 5 2 Cannons 15 | . 11 4 . AOE 4 | . . 4 . Classes Destroyed 10 | 2 5 2 1 Builder 1 | . . 1 . Tunneler 1 | 1 . . . Hauler 1 | . 1 . . Recycler 1 | 1 . . . Operator 1 | . 1 . . Watcher 2 | . 2 . . Swarmer 9 | . 6 3 . Grunt 8 | . 6 2 . Subdweller 2 | . . . 2 Assembled 8 | . . 8 . Best Kill Streak 3 | 2 3 3 1 Combat Bots Only 3 | . 3 3 1 Max Kills in Single Turn 2 | 1 1 2 1 Gunslinging . | . . . . Exploded 2 | . . 2 . Melee . | . . . . Uniques/NPCs Destroyed . | . . . . Combat | -11 -10 -10 -10 -------- Run | Yrd Mat Min Sub Hostile Shots Fired 113 | . 33 69 11 Missed 18 | . 9 9 . Damage Taken 1520 | . 233 893 394 Core 258 | . 46 172 40 Absorbed by Shields . | . . . . Core Remaining (%) 100 | 100 . . . Volleys Fired 137 | 7 53 61 16 Largest 2 | 2 2 2 2 Hottest 125 | 60 120 125 95 Shots Fired 225 | 14 100 80 31 Gun 128 | 14 40 43 31 Cannon 90 | . 56 34 . Launcher 3 | . . 3 . Special 4 | . 4 . . Kinetic 59 | 7 24 . 28 Thermal 163 | 7 76 77 3 Explosive 3 | . . 3 . Electromagnetic . | . . . . Robot Hit Streak 9 | 4 9 7 3 Robot Miss Streak 6 | 2 6 6 4 Penetration Max . | . . . . Secondary Targets . | . . . . Shots Hit Robots 97 | 8 40 40 9 Core Hits 47 | 4 19 21 3 Critical Kills . | . . . . Critical Parts Destroyed . | . . . . Critical Strikes 1 | . . . 1 Burn 1 | . . . 1 Melee Attacks . | . . . . Impact . | . . . . Slashing . | . . . . Piercing . | . . . . Sneak Attacks . | . . . . Combat Hostiles . | . . . . Follow-up Attacks . | . . . . Damage Inflicted 1756 | 71 627 888 170 Guns 722 | 71 155 326 170 Cannons 801 | . 435 366 . Explosions 196 | . . 196 . Melee . | . . . . Ramming 37 | . 37 . . Kinetic 246 | 27 65 . 154 Thermal 1277 | 44 525 692 16 Explosive 196 | . . 196 . Electromagnetic . | . . . . Impact . | . . . . Slashing . | . . . . Piercing . | . . . . Highest Corruption 9 | . . 9 9 Average Corruption 8 | . . 8 9 Corruption Purged . | . . . . Corruption Blocked . | . . . . Effects 39 | . . 14 25 Message Errors 8 | . . 3 5 Matter Fused 9 | . . 2 7 Heat Flow Errors 3 | . . 1 2 Energy Discharges 4 | . . 1 3 Parts Fused 1 | . . 1 . Data Loss (minor) 8 | . . 2 6 Data Loss (major) 3 | . . 2 1 Misfires 2 | . . 1 1 Alerts 1 | . . 1 . Overload Shots . | . . . . Overflow Damage 34 | . . 34 . Projectiles 16 | . . 16 . Explosions 18 | . . 18 . Melee . | . . . . Knockbacks . | . . . . Impact . | . . . . Kinetic . | . . . . Secondary . | . . . . Self-Inflicted Damage . | . . . . Shots . | . . . . Rammed . | . . . . Targets Rammed 7 | . 7 . . Kicked 7 | . 7 . . Crushed . | . . . . Highest Temperature 393 | 40 393 345 208 Average Temperature 82 | 19 65 104 85 Received Heat Transfer 240 | . 63 177 . Effects 3 | . 1 2 . Energy Bleed 1 | . . 1 . Interference 1 | . . 1 . Matter Decay 1 | . 1 . . Siege Activations . | . . . . Robots Corrupted . | . . . . Combat Hostiles . | . . . . Parts Fried . | . . . . Impact Corruptions . | . . . . Robots Melted . | . . . . Combat Hostiles . | . . . . Parts Melted 2 | . 2 . . Heat Transferred 2890 | 100 1125 1554 111 Parts Sabotaged . | . . . . Parts Stolen . | . . . . Parts Stripped . | . . . . Power Chain Reactions . | . . . . Missiles Intercepted . | . . . . Alert | -11 -10 -10 -10 ------- Run | Yrd Mat Min Sub Peak Influence 188 | 10 188 77 . Initial 9 | . 6 9 . Average 53 | 7 75 13 . Maximum Alert Level . | . . . . Low Security (%) 100 | 100 100 100 . Level 1 . | . . . . Level 2 . | . . . . Level 3 . | . . . . Level 4 . | . . . . Level 5 . | . . . . High Security . | . . . . Max Security . | . . . . Squads Dispatched 2 | . 2 . . Investigation . | . . . . Extermination . | . . . . Reinforcement 2 | . 2 . . Assault . | . . . . Garrison . | . . . . Intercept . | . . . . Searches Triggered . | . . . . Construction Impeded . | . . . . Haulers Reinforced . | . . . . Active Scanning Responses . | . . . . Cargo Convoy Interrupts . | . . . . Stealth | -11 -10 -10 -10 --------- Run | Yrd Mat Min Sub Distress Signals 5 | . 4 1 . Communications Jammed . | . . . . Distress Signals . | . . . . Times Spotted 41 | . 24 13 4 Peak Tracking Total 4 | . 4 3 2 Tactical Retreats 1 | . . 1 . Traps | -11 -10 -10 -10 ------- Run | Yrd Mat Min Sub Traps Triggered . | . . . . Indirectly . | . . . . Trap Hack Attempts . | . . . . Triggered . | . . . . Disarmed . | . . . . Reprogrammed . | . . . . Reused . | . . . . Traps Extracted . | . . . . Installed . | . . . . Triggered . | . . . . Machines | -11 -10 -10 -10 ---------- Run | Yrd Mat Min Sub Machines Disabled . | . . . . Max in Single Turn . | . . . . Machines Repaired . | . . . . Machines Dismantled . | . . . . Machines Sabotaged . | . . . . Overloaded Fab Kills . | . . . . Hacking | -11 -10 -10 -10 --------- Run | Yrd Mat Min Sub Machines Accessed 5 | . 5 . . Terminals 5 | . 5 . . Fabricators . | . . . . Repair Stations . | . . . . Recycling Units . | . . . . Scanalyzers . | . . . . Garrison Access . | . . . . Total Hacks 18 | . 18 . . Successful 6 | . 6 . . Failed 12 | . 12 . . Catastrophic 5 | . 5 . . Database Lockouts . | . . . . Manual 17 | . 17 . . Terminals 18 | . 18 . . Fabricators . | . . . . Repair Stations . | . . . . Recycling Units . | . . . . Scanalyzers . | . . . . Garrison Access . | . . . . Terminal Hacks 2 | . 2 . . Terminal Index 1 | . 1 . . Zone Layout 1 | . 1 . . Fabricator Hacks . | . . . . Repair Station Hacks . | . . . . Recycling Unit Hacks . | . . . . Scanalyzer . | . . . . Garrison Access Hacks . | . . . . Unauthorized Hacks 4 | . 4 . . Terminals 4 | . 4 . . Track 2 | . 2 . . Botnet 2 | . 2 . . Fabricators . | . . . . Repair Stations . | . . . . Recycling Units . | . . . . Scanalyzers . | . . . . Garrison Access . | . . . . Data Cores Recovered 1 | . 1 . . Used . | . . . . Hacking Detections 5 | . 5 . . Full Trace Events 1 | . 1 . . Feedback Events . | . . . . Feedback Blocked . | . . . . Robot Schematics Acquired . | . . . . Robots Built . | . . . . Authchips . | . . . . Time . | . . . . Total Robot Build Rating . | . . . . Part Schematics Acquired . | . . . . Parts Built . | . . . . Authchips . | . . . . Time . | . . . . Total Part Build Rating . | . . . . Parts Repaired . | . . . . Time . | . . . . Parts Recycled . | . . . . Recycled Matter . | . . . . Retrieved Matter . | . . . . Retrieved Components . | . . . . Parts Scanalyzed . | . . . . Part Schematics Acquired . | . . . . Parts Damaged . | . . . . Bothacking | -11 -10 -10 -10 ------------ Run | Yrd Mat Min Sub Used RIF Installer . | . . . . Robots Hacked . | . . . . Non-combat . | . . . . Combat . | . . . . Robot Hacks Applied . | . . . . Relay Couplers Released . | . . . . Fabnet Peak Effective % . | . . . . Robots Rewired . | . . . . Allies Hacked . | . . . . Hacks Repelled . | . . . . Allies | -11 -10 -10 -10 -------- Run | Yrd Mat Min Sub Total Allies . | . . . . Largest Group . | . . . . Highest-Rated Group . | . . . . Highest-Rated Ally . | . . . . Total Orders . | . . . . Ally Attacks . | . . . . Total Damage . | . . . . Kills . | . . . . Allies Corrupted . | . . . . Allies Melted . | . . . . Intel | -11 -10 -10 -10 ------- Run | Yrd Mat Min Sub Robot Analysis Total . | . . . . Derelict Logs Recovered 1 | . . . 1 Drone Launches . | . . . . Drone Recoveries . | . . . . Exploration | -11 -10 -10 -10 ------------- Run | Yrd Mat Min Sub Turns Passed 2714 | 53 1284 634 743 Spaces Moved 1292 | 26 588 275 403 Core . | . . . . Treads 605 | . . 202 403 Legs 687 | 26 588 73 . Wheels . | . . . . Hover . | . . . . Flight . | . . . . Fastest Speed 120 | 120 120 160 160 Average Speed 159 | 120 157 167 160 Slowest Speed 190 | 120 190 190 160 Overloaded Moves . | . . . . Propulsion Burnouts . | . . . . Robots Hopped . | . . . . Cave-ins Triggered . | . . . . Exploration Rate (%) 39 | 3 88 47 19 Regions Visited 3 Branch Regions 2 Pre-discovered Areas . | . . . . Known Exits Taken . | . . . . Unknown Exits Taken 3 | 1 1 1 . Scrap Searched 1 | . . . 1 Spaces Dug 11 | . 3 8 . Terrain Destroyed 32 | . 3 29 . Melee . | . . . . Projectile 3 | . 3 . . AOE 29 | . . 29 . Terrain Rammed . | . . . . Walls Destroyed . | . . . . Machines Disabled . | . . . . Actions | -11 -10 -10 -10 --------- Run | Yrd Mat Min Sub Total 1712 | 34 840 366 472 Wait 209 | . 160 17 32 Move 1289 | 25 587 274 403 Hop . | . . . . Pick Up 27 | 1 16 2 8 Fast Attach 6 | 1 . 3 2 Attach 6 | . . 5 1 Detach 1 | . . 1 . Swap 17 | . 9 3 5 Drop 13 | . 8 . 5 Fire 137 | 7 53 61 16 Melee . | . . . . Ram . | . . . . Kick 7 | . 7 . . Crush . | . . . . Escape Stasis . | . . . . Rewire . | . . . . Trap . | . . . . Miscellaneous . | . . . . Route ------- -11/Scrapyard -10/Materials (discovered 3 exits: [*Mat x2] / [*Min]) -10/Mines -10/Subcaves History --------- Turn | Location | Event 21 | -11/Scrapyard | Discovered new exit (range 3) 54 | -11/Scrapyard | Entered Materials 305 | -10/Materials | Build established: Mutant 437 | -10/Materials | Discovered new exit (range 16) 710 | -10/Materials | Discovered new exit (range 15) 812 | -10/Materials | Discovered new exit (range 13) 1338 | -10/Materials | Entered Mines 1339 | -10/Mines | Assembled infested the area 1540 | -10/Mines | Core integrity fell below 50% 1605 | -10/Mines | Lost 4 parts (1p1n1u1w) 1889 | -10/Mines | Core integrity fell below 20% 1964 | -10/Mines | Discovered new exit (range 5) 1972 | -10/Mines | Entered Subcaves 2238 | -10/Subcaves | Learned 4 Materials zone layouts 2421 | -10/Subcaves | Build established: Subdweller-Mutant 2493 | -10/Subcaves | Shifting Twisted Machinery released Spk. Treads 2519 | -10/Subcaves | Shifting Twisted Machinery released Sub. Monowheel 2715 | -10/Subcaves | Destroyed by 3I-FVL(R) with Subdweller Shrapnel Launcher Last Messages --------------- 02484_ System corrupted: Matter fused (-6). 02486_ Sub. Power Source shoots sparks and powers down. Spk. Treads falls loose from the Twisted Machinery. 02507_ System corrupted: Heat flow error (+149). 02516_ Dropped Broken Sub. Power Source. 02517_ Acquired Spk. Treads. Sub. Monowheel falls loose from the Twisted Machinery. 02528_ System corrupted: Component data lost. 02534_ Dropped Lgt. Treads. 02534_ Acquired Sub. Monowheel. 02543_ ORH#6EI&TFE 3IAQW JBDI 02562_ Acquired 10 matter. 02609_ WKUZRW1=LMSDBS6O>LR#J 02626_ Sub. Power Source shoots sparks and powers down. 02636_ System corrupted: Matter fused (-7). 02661_ System corrupted: Component data lost. 02667_ M2-VHQ(u) deconstructs Twisted Machinery. 02704_ QU6YJK51CHB&9IRZEQG3AOWQ9ZB OKDF62J6V 02713_ Broken Sub. Power Source destroyed. 02715_ Lgt. Armor Plating destroyed. Map ----- +----------------------------------------------------+ | | | | | | | | | | | | | ?????????????????????????????????????????????????? | | ?????????????????????????????????????????????????? | | ?????????????????????????????????????????????????? | | ?????????????????????????????????????????????????? | | ?????????????????????????????????????????????????? | | ?????????????????????????????????????????????????? | | ?????????????????????????????????????????????????? | | ?????????????????????????????????????????????????? | | ?????????????????????????????????????????????????? | | ?????????????????????????????????????????????????? | | ?????????????????????????????????????????????????? | | ?????????????????????????????????????????????????? | | ?????????????????????????????????????????????????? | | ?????????????????????????????????????????????????? | | ???????????????????????????????????#####?????????? | | ????????????????????????#####??????? ####??????? | | ????????????????# ???### ##?????? """?????? | | ????????????????# ##;;;;;;#??###?# ""#?????? | | ???????????????## ;; ;#?## ### #""#??????? | | ???????????????# @ ;### ##"" #"#???????? | | ??????????????# ;# # " ##??????? | | ?????????????# ;; " #??????? | | ????????????# #;; " # # # ##??????? | | ???????????RR% %### ### ; #" # #?#??????? | | ???????????? #????###???###### #? ###???? | | ?????????????????????????????## ### ##### #???? | | ?????????????????????????????# #####" "# ##### | | ???????????????????????????### ###"" ### # | | ???????????????????????????# # | | ???????????????????????????# " = | | ???????????????????????????# = ### | | ???????????????????????????# ""# & ##### | | ???????????????????????????# """"####" !& ##?? | | ???????????????????????????# ###??#" "" ##? | | ??????????????????????????## ##????# #? | | ?????????????????????????## #?????#" #? | | ?????????????????????????# ##????#" " ##? | | ?????????????????????????# "" ###??# % " #?? | | ?????????????????????????## #??## " ##?? | | ?????????????????????????##" #??#"" "##??? | | ?????????????????????????# #####"""""""#???? | | ??????????????######?????## "####" ####???? | | ????####?????##"" #####??## "" """" "" ??????? | | ???## #?????#""" #####"" "" ??????? | +----------------------------------------------------+ Best States ------------- Heat Dissipation 39 Energy Generation 15 Energy Capacity 250 Matter Stores 300 Matter Capacity 300 Sight Range 16 Terrain Scan Density 10 Armor Coverage 150 Evasion (%) 55 Recoil Reduction 2 Item Schematics ----------------- None Robot Schematics ------------------ None Fabricated ------------ Nothing Alien Tech Used ----------------- None Achievements -------------- None Challenges ------------ None Game ------ Seed ClaymoresNeutronAirjet Manual? 0 Play Time 00:52:24 Cumulative 91.9 hours Start 2024.01.04 @ 17:13:00 End 2024.01.05 @ 06:13:03 Sessions 1 Manual Loads 0 Difficulty Rogue Special Mode None Game No. 87 Rogue 87 Adventurer 0 Explorer 0 Win Type - Total 0 Types 0/0/0/0/0/0/0/0/0 Lore% 32 Gallery% 46 Achievement% 35 Wizard Run 0 Options --------- ASCII 0 Keyboard 0 Movement Numpad Keybinds 0 Fullscreen 1 Font 24/Terminus Map View 113x50 Zoom Use 0% Tactical HUD 1 Map Filters NONE Filters NONE Steam 1 RUN: 3e50f7be-38b1-41e0-adc7-33bd3b3b58cc